bitfinex/quotes_ETHUSD_20241215
["timestamp","ask_amount","ask_price","bid_price","bid_amount"]
[1734305247893,0.7786,3943.6,3942.8,2.53624]
[1734305248200,0.7786,3943.6,3943.3,2.53591]
[1734305248372,0.7786,3943.6,3943.4,0.07923003]
[1734305248557,0.7786,3943.6,3942.3,2.53654]
[1734305248558,0.7786,3943.6,3943.5,0.15842678]
[1734305248762,0.7786,3943.6,3943.5,0.07923003]
[1734305248972,0.7786,3943.6,3943.5,0.07919533]
[1734305249198,0.7786,3943.6,3943.5,0.07919171]
[1734305249396,0.7786,3943.6,3943.5,0.07919778]
[1734305249602,1.14811763,3943.6,3941.7,2.66247642]
[1734305249774,0.7816,3942.4,3940.8,1.01720855]
[1734305249978,0.7816,3944.2,3941.3,0.12659575]
[1734305250202,2.91657626,3943.7,3942.5,2.53643]
[1734305250402,2.91657626,3943.7,3942.9,2.53617]
[1734305250604,0.7816,3944.2,3943.0,0.07921318]
[1734305250821,1.15141763,3944.2,3943.1,2.61525318]
[1734305250965,0.7816,3944.2,3943.4,2.53585]
[1734305251166,0.7816,3944.2,3943.5,0.10457063]
[1734305251383,3.68387626,3944.9,3944.0,2.53548]
[1734305251583,3.68387626,3944.9,3944.1,0.07921318]
[1734305251921,2.91657626,3944.9,3944.2,0.07921318]
[1734305252120,2.91657626,3944.9,3944.3,0.07921318]
[1734305252416,2.91657626,3944.9,3943.4,0.55]
[1734305252577,2.91657626,3945.0,3943.8,0.55]
[1734305252777,2.91657626,3945.0,3943.9,0.0791785]
[1734305252981,2.91657626,3945.0,3944.0,0.0791785]
[1734305253217,2.91657626,3945.0,3944.1,0.0791785]
[1734305253517,2.86657626,3945.0,3944.2,0.0791785]
[1734305253737,2.86657626,3945.0,3944.3,0.0791785]
[1734305253887,2.86657626,3945.0,3944.4,0.0791785]
[1734305254235,0.7673,3945.5,3944.6,2.53508]
[1734305254396,0.7673,3945.5,3944.7,0.0791785]
[1734305254594,0.7673,3945.5,3943.3,2.66350438]
[1734305254595,2.91657626,3945.0,3944.8,0.0791785]
[1734305254818,2.91657626,3945.0,3943.3,0.12758438]
[1734305254819,2.91657626,3945.0,3944.0,2.53543]
[1734305255126,2.91657626,3945.0,3944.1,0.07917634]
[1734305255299,0.8188,3944.8,3944.2,0.07917634]
[1734305255499,0.8188,3944.8,3943.5,2.53576]
[1734305255713,0.8188,3944.8,3942.6,0.82995529]
[1734305255714,0.8188,3944.8,3943.6,0.07918809]
[1734305255895,0.8188,3944.8,3943.7,0.07918809]
[1734305256227,0.8188,3944.8,3941.7,2.53693]
[1734305256228,3.7902,3944.2,3941.7,2.53693]
[1734305256428,0.7902,3943.2,3941.8,0.07919748]
[1734305256725,0.7902,3943.2,3941.9,0.07919748]
[1734305256926,0.7902,3943.2,3942.0,0.07919748]
[1734305257087,0.7902,3943.2,3941.6,2.53699]
[1734305257293,0.7902,3943.2,3941.7,0.07923126]
[1734305257487,2.91657626,3942.2,3941.8,2.61610126]
[1734305257687,2.91657626,3942.2,3941.9,0.07923126]
[1734305257914,2.91657626,3942.2,3942.0,0.07922898]
[1734305258133,2.91657626,3942.2,3942.1,0.07922898]
[1734305260147,2.91657626,3942.8,3942.1,7.22834098]
[1734305260293,2.91657626,3942.8,3942.2,0.07922898]
[1734305260653,2.91657626,3942.8,3942.4,0.55]
[1734305260934,0.7606,3942.7,3942.5,0.07922898]
[1734305261094,2.91657626,3942.6,3940.7,2.53758]
[1734305261316,3.67717626,3941.4,3940.8,0.0792255]
[1734305261523,3.67717626,3941.4,3940.9,0.0792255]
[1734305261764,0.74150611,3941.4,3941.0,0.07924557]
[1734305261920,0.74150611,3941.4,3941.1,0.07924557]
[1734305262216,0.74150611,3941.4,3941.2,0.07924703]
[1734305262417,2.91657626,3941.3,3940.3,0.02537544]
[1734305262663,2.91657626,3941.3,3940.7,2.53761]
[1734305262816,2.91657626,3941.9,3940.8,0.15849332]
[1734305263151,2.91657626,3941.9,3940.5,0.02537244]
[1734305263152,2.91657626,3941.2,3940.9,0.15849332]
[1734305263352,2.91657626,3941.2,3941.0,0.07924666]
[1734305263554,2.91657626,3941.2,3940.1,2.53797]
[1734305263856,2.91657626,3941.2,3939.8,2.69277294]
[1734305263857,2.91657626,3941.2,3940.2,0.15849871]
[1734305264058,2.91657626,3941.2,3940.8,2.53751]
[1734305264359,2.91657626,3941.8,3940.9,15.10990306]
[1734305264552,2.91657626,3941.8,3941.1,0.55]
[1734305264759,2.91657626,3941.8,3941.3,3.08719]
[1734305264961,2.91657626,3941.8,3941.7,0.55]
[1734305265130,2.91657626,3941.8,3941.7,0.62924219]
[1734305265334,2.91657626,3941.8,3941.7,0.70847147]
[1734305265651,0.7735,3942.2,3941.8,0.55]
[1734305265817,2.91657626,3942.5,3942.0,2.53677]
[1734305266024,2.91657626,3942.5,3942.2,2.53662]
[1734305266248,2.91657626,3942.5,3942.3,0.07924219]
[1734305266426,2.91657626,3942.5,3942.2,2.53662]
[1734305266638,0.25,3944.5,3939.8,3.18909331]
[1734305266639,2.91657626,3943.3,3942.4,0.55]
[1734305266850,2.91657626,3943.3,3943.1,2.53605]
[1734305267096,2.91657626,3943.3,3942.7,2.53629]
[1734305267097,2.91657626,3944.0,3943.9,2.53556]
[1734305267388,2.91657626,3944.0,3942.2,0.7949]
[1734305267597,0.7735,3944.2,3942.8,2.53624]
[1734305267598,2.91657626,3943.3,3942.8,2.53624]
[1734305267730,2.91657626,3943.3,3942.9,0.15837983]
[1734305267921,0.7735,3943.2,3943.0,0.07918979]
[1734305268117,0.7735,3943.2,3942.5,0.55]
[1734305268365,0.7735,3943.2,3942.8,2.53623]
[1734305268542,0.7735,3943.2,3942.9,0.07920016]
[1734305268923,2.91657626,3943.3,3942.9,0.07920016]
[1734305269118,2.91657626,3943.3,3942.9,2.61537016]
[1734305269324,2.91657626,3943.3,3942.9,0.07920016]
[1734305269728,2.91657626,3943.3,3943.0,0.07920016]
[1734305269931,2.91657626,3943.3,3942.9,2.53617]
[1734305270132,2.91657626,3943.3,3942.5,2.53643]
[1734305270358,2.91657626,3943.3,3943.0,0.0792042]
[1734305270560,2.91657626,3943.3,3943.1,0.0792042]
[1734305270723,2.91657626,3943.3,3942.3,0.55]
[1734305271042,2.91657626,3943.3,3942.9,2.5362]
[1734305271243,2.91657626,3943.3,3943.0,0.07920714]
[1734305271457,2.91657626,3943.3,3943.1,0.07920714]
[1734305271662,2.91657626,3943.3,3942.8,2.53624]
[1734305271866,2.91657626,3943.3,3942.9,0.1584111]
[1734305272159,2.91657626,3943.3,3943.0,0.15840926]
[1734305272359,2.91657626,3943.3,3942.5,0.55]
[1734305272360,2.91657626,3943.3,3943.1,0.07920773]
[1734305272664,2.91657626,3943.3,3942.1,2.6657825]
[1734305272665,0.8152,3943.2,3942.0,2.53675]
[1734305272891,2.91657626,3942.6,3942.1,0.15843179]
[1734305273027,2.91657626,3942.6,3942.2,0.15843179]
[1734305273335,2.91657626,3942.6,3942.4,2.5365]
[1734305273660,2.91657626,3942.6,3942.5,0.15843531]
[1734305273849,0.8134,3943.7,3942.6,2.53639]
[1734305274045,2.91657626,3943.1,3942.9,2.53618]
[1734305274228,0.8134,3943.7,3942.7,0.15843531]
[1734305274229,0.8134,3943.7,3943.1,0.55]
[1734305274733,0.8134,3944.3,3944.2,2.53533]
[1734305275135,2.91657626,3944.4,3944.2,2.53533]
[1734305276025,2.91657626,3944.4,3943.1,0.55]
[1734305276229,2.91657626,3944.4,3943.8,2.5356]
[1734305276437,2.91657626,3944.4,3943.9,0.15835546]
[1734305276649,2.91657626,3944.4,3944.0,0.07917771]
[1734305276852,2.91657626,3944.4,3944.0,2.53548]
[1734305277159,2.91657626,3944.4,3943.3,0.55]
[1734305277365,2.91657626,3944.4,3944.2,2.53535]
[1734305277565,2.91657626,3943.7,3943.3,0.55]
[1734305277728,2.91657626,3943.7,3943.2,2.536]
[1734305277729,3.72997626,3943.7,3943.4,0.0791962]
[1734305278060,3.72997626,3943.7,3942.3,0.7757]
[1734305278260,3.72997626,3943.7,3942.4,0.07920145]
[1734305278560,0.8134,3943.6,3943.4,2.53584]
[1734305278766,0.8134,3943.6,3943.0,2.53611]
[1734305278928,0.8134,3943.6,3943.1,2.61526195]
[1734305279262,2.91657626,3943.7,3943.6,2.53575]
[1734305279463,0.8134,3944.1,3943.6,2.53575]
[1734305279464,2.91657626,3944.3,3943.6,0.07919048]
[1734305279638,2.91657626,3944.3,3942.6,3.02536058]
[1734305279639,2.91657626,3944.9,3944.8,2.53498]
[1734305280163,0.08,3946.2,3944.8,0.07916396]
[1734305280164,3.72997626,3945.5,3944.8,0.07916396]
[1734305280384,2.91657626,3944.9,3944.8,2.53495]
[1734305280674,2.91657626,3944.9,3944.4,0.55]
[1734305280849,2.91657626,3944.9,3944.3,2.53524]
[1734305281180,3.20823389,3944.9,3943.5,2.53581]
[1734305281384,2.91657626,3944.9,3944.7,2.53502]
[1734305281881,1.03959063,3944.9,3944.7,2.53502]
[1734305282824,1.03959063,3944.9,3943.6,0.55]
[1734305283025,2.91657626,3944.3,3943.7,0.1583469]
[1734305283384,0.8291,3944.4,3943.8,0.15835543]
[1734305283543,2.91657626,3944.3,3944.1,2.53542]
[1734305284077,2.91657626,3944.3,3942.9,0.8206]
[1734305284307,2.91657626,3943.7,3943.1,2.53604]
[1734305284506,2.91657626,3943.7,3943.2,0.07919557]
[1734305284773,3.73497626,3944.9,3944.1,2.5354]
[1734305284932,3.73497626,3944.9,3944.2,0.07919557]
[1734305285134,3.73497626,3944.9,3944.7,2.53503]
[1734305285355,3.73497626,3944.9,3944.4,2.53518]
[1734305285556,3.73497626,3944.9,3943.6,0.55]
[1734305285734,3.73497626,3944.9,3944.2,2.53533]
[1734305286469,2.91657626,3944.3,3943.9,2.53554]
[1734305286774,2.91657626,3944.3,3944.1,2.53541]
[1734305287444,2.91657626,3944.3,3943.2,0.8281]
[1734305287649,2.91657626,3944.3,3943.8,2.53557]
[1734305287836,2.91657626,3944.3,3943.9,0.07918404]
[1734305288175,2.91657626,3944.3,3943.2,0.8281]
[1734305288176,1.0,3944.2,3943.7,2.53563]
[1734305288359,0.786,3944.0,3942.5,1.52983447]
[1734305288674,2.91657626,3943.4,3943.0,2.53612]
[1734305288974,2.91657626,3943.4,3942.8,0.07919445]
[1734305288975,2.91657626,3943.4,3943.1,2.24028126]
[1734305289157,1.0,3944.2,3944.0,2.53549]
[1734305289359,2.91657626,3944.8,3944.7,2.53504]
[1734305289734,2.91657626,3945.8,3945.5,2.53453]
[1734305289936,2.91657626,3945.8,3945.7,2.5344]
[1734305290278,0.08,3946.6,3946.3,2.53395]
[1734305290279,2.91657626,3946.5,3946.3,2.53395]
[1734305290574,2.91657626,3946.5,3945.5,0.7765]
[1734305290870,2.91657626,3946.5,3944.4,0.91959655]
[1734305290871,0.7784,3945.7,3944.4,0.91959655]
[1734305291092,2.91657626,3944.7,3944.5,2.69345691]
[1734305291288,2.91657626,3945.3,3944.6,12.536862]
[1734305291498,2.91657626,3945.3,3945.1,2.53478]
[1734305291713,2.91657626,3945.9,3945.7,2.53435]
[1734305292569,2.91657626,3945.9,3945.2,2.53469]
[1734305292789,2.91657626,3945.9,3944.5,0.8231]
[1734305292790,2.91657626,3945.3,3944.3,0.12728266]
[1734305293248,2.91657626,3944.7,3944.4,0.1583346]
[1734305293448,0.7642,3944.6,3943.2,2.53599]
[1734305293677,2.91657626,3943.3,3942.8,0.07919445]
[1734305293879,2.91657626,3943.3,3942.9,0.07919036]
[1734305294094,2.91657626,3943.3,3943.0,0.07919036]
[1734305294325,2.91657626,3943.3,3942.8,0.07919445]
[1734305294454,0.7816,3943.2,3942.8,0.07919445]
[1734305294655,0.7816,3943.2,3941.4,0.7568]
[1734305294854,0.7816,3943.2,3940.7,2.0397793]
[1734305294855,2.91657626,3941.9,3941.5,0.12728266]
[1734305295151,2.91657626,3941.9,3940.8,0.7568]
[1734305295346,2.91657626,3941.9,3940.8,3.29434]
[1734305295582,2.91657626,3941.9,3941.3,2.53716]
[1734305295783,2.91657626,3941.9,3941.4,2.53713]
[1734305295983,2.91657626,3941.9,3940.9,2.53743]
[1734305296185,2.91657626,3941.9,3940.9,2.89465895]
[1734305296407,2.91657626,3941.9,3940.9,2.53743]
[1734305296555,2.91657626,3941.2,3940.3,1.84898965]
[1734305296885,2.91657626,3941.2,3940.6,2.53766]
[1734305297060,2.91657626,3941.2,3940.4,2.53779]
[1734305297390,2.91657626,3941.2,3940.3,0.8291]
[1734305297688,2.91657626,3940.6,3939.6,0.826]
[1734305297874,2.91657626,3940.6,3940.1,2.538]
[1734305298188,2.91657626,3940.6,3939.8,2.53818]
[1734305298551,2.91657626,3940.0,3939.1,0.8175]
[1734305298980,2.91657626,3939.4,3938.6,3.35644]
[1734305299235,2.91657626,3939.4,3938.7,2.53886]
[1734305299681,2.91657626,3939.4,3938.8,2.53882]
[1734305299883,2.91657626,3939.4,3939.1,2.53861]
[1734305300088,2.91657626,3939.4,3939.2,2.53856]
[1734305300383,0.7969,3940.7,3938.4,0.12788818]
[1734305300384,2.91657626,3940.0,3939.8,2.53816]
[1734305300980,2.91657626,3940.0,3939.0,2.53867]
[1734305301177,2.91657626,3940.0,3939.8,2.53815]
[1734305302014,2.91657626,3940.0,3938.4,0.12788818]
[1734305302359,2.91657626,3940.0,3938.7,2.53889]
[1734305302477,2.91657626,3940.0,3938.5,2.53903]
[1734305302678,2.91657626,3939.4,3938.4,0.12788818]
[1734305302929,2.91657626,3939.4,3939.2,2.53855]
[1734305304644,2.91657626,3939.4,3938.9,2.53874]
[1734305304937,2.91657626,3939.4,3937.1,1.01988965]
[1734305305147,9.2275036,3941.3,3937.5,0.793]
[1734305305148,2.91657626,3938.7,3937.5,0.793]
[1734305305432,2.91657626,3938.7,3937.8,0.12998264]
[1734305305611,2.91657626,3938.7,3938.0,2.53931]
[1734305305819,2.91657626,3938.7,3936.9,0.02539031]
[1734305305820,2.91657626,3938.7,3936.9,2.54001]
[1734305305980,2.91657626,3938.7,3938.1,2.53925]
[1734305306182,2.91657626,3938.7,3937.8,2.53948]
[1734305306534,2.91657626,3938.7,3937.1,3.33289]
[1734305306535,0.8261,3937.9,3937.3,0.1291708]
[1734305306717,0.8261,3937.9,3936.1,3.05537835]
[1734305306718,2.91657626,3937.4,3936.9,2.54]
[1734305306928,2.91657626,3937.4,3936.1,0.26484835]
[1734305306929,2.91657626,3937.4,3936.4,2.54036]
[1734305307229,0.8261,3938.2,3937.3,2.53974]
[1734305307230,2.91657626,3938.0,3937.3,2.53974]
[1734305307541,2.91657626,3938.0,3936.7,2.54019]
[1734305307542,2.91657626,3938.0,3936.1,0.02539703]
[1734305307739,2.91657626,3938.0,3936.7,2.54014]
[1734305307940,2.91657626,3938.0,3936.2,0.0793101]
[1734305307941,2.91657626,3938.0,3936.8,0.12828285]
[1734305308275,2.91657626,3938.0,3937.1,2.53994]
[1734305308531,2.91657626,3938.0,3937.8,2.53946]
[1734305308740,0.8261,3938.2,3938.0,2.53932]
[1734305309080,2.91657626,3938.6,3938.5,2.53903]
[1734305309379,3.72607626,3939.2,3937.0,0.55]
[1734305309644,2.91657626,3938.6,3937.6,2.53957]
[1734305309929,2.91657626,3938.6,3937.9,2.53942]
[1734305310163,2.91657626,3938.0,3936.8,2.54008]
[1734305310290,2.91657626,3937.4,3936.9,2.54002]
[1734305310695,2.91352524,3937.4,3937.1,2.53991]
[1734305310933,2.91352524,3937.4,3937.2,2.53984]
[1734305311144,0.8095,3937.9,3936.1,0.1542524]
[1734305311352,2.91657626,3937.4,3937.2,2.53982]
[1734305311754,2.91657626,3937.4,3936.9,2.54005]
[1734305312059,0.8095,3937.3,3936.0,0.008152]
[1734305312360,0.8095,3937.3,3936.7,2.54016]
[1734305312583,0.8095,3937.3,3936.8,2.54011]
[1734305312707,0.8095,3937.3,3936.1,2.54058]
[1734305312906,0.8095,3937.3,3937.1,2.53989]
[1734305314144,0.8095,3937.3,3936.8,2.54009]
[1734305314324,0.8095,3937.3,3936.5,2.54032]
[1734305314865,0.8095,3937.3,3937.0,2.53997]
[1734305315026,0.8095,3937.3,3936.0,0.008152]
[1734305315233,0.8095,3937.3,3936.9,2.54003]
[1734305315551,0.8095,3937.3,3936.7,2.54016]
[1734305315931,0.8095,3937.3,3936.3,2.54039]
[1734305316109,0.8095,3937.3,3936.4,2.54036]
[1734305316550,0.8095,3937.3,3936.0,0.008152]
[1734305316756,0.8095,3937.3,3936.5,2.5403]
[1734305316904,2.91657626,3936.8,3936.2,2.54047]
[1734305317111,0.7631,3936.7,3936.0,0.008152]
[1734305317411,2.91657626,3936.2,3936.0,0.008152]
[1734305317673,0.7866,3936.1,3936.0,0.008152]
[1734305319424,3.70317626,3935.0,3934.5,0.39680032]
[1734305319637,2.91657626,3935.0,3934.8,2.54137]
[1734305319933,2.91657626,3935.0,3933.6,0.7988]
[1734305319934,2.91657626,3935.0,3933.9,2.542]
[1734305320077,0.7866,3935.5,3933.9,2.542]
[1734305320078,0.7866,3935.5,3933.9,2.54197]
[1734305320275,0.7866,3935.5,3935.0,2.54129]
[1734305320476,0.8267,3936.7,3935.3,2.5411]
[1734305320676,2.91657626,3936.2,3934.9,2.7068262]
[1734305320913,0.8267,3936.7,3936.1,2.54056]
[1734305321284,0.8267,3936.7,3935.4,5.08206]
[1734305321511,0.8267,3936.7,3935.2,2.54116]
[1734305321512,0.8267,3936.7,3936.5,2.54031]
[1734305321731,0.8267,3937.3,3937.1,2.53992]
[1734305321877,0.8267,3937.3,3936.6,10.788127]
[1734305321878,0.8267,3937.3,3936.6,2.54024]
[1734305322216,0.8267,3937.3,3935.9,0.7728]
[1734305322419,0.8267,3937.3,3936.9,2.54001]
[1734305322719,0.8267,3937.3,3937.1,2.53993]
[1734305322888,0.753,3937.7,3936.2,0.55]
[1734305323095,2.91657626,3938.0,3937.3,2.53979]
[1734305323292,0.753,3938.2,3937.8,2.53945]
[1734305323632,0.753,3938.2,3938.0,2.53931]
[1734305324118,2.91657626,3939.2,3938.1,4.151504]
[1734305324321,2.91657626,3939.2,3938.0,0.8262]
[1734305324322,2.91657626,3939.2,3938.3,2.53916]
[1734305324621,2.91657626,3938.4,3937.6,2.53955]
[1734305324784,2.91657626,3937.8,3937.7,0.07930245]
[1734305324982,2.91657626,3939.0,3937.0,0.7643]
[1734305325217,1.015162,3938.9,3937.2,2.53987]
[1734305325381,0.7553,3938.7,3937.7,2.53953]
[1734305325590,0.7553,3938.7,3937.1,0.12773907]
[1734305325591,0.7553,3938.7,3937.4,2.53971]
[1734305325788,0.7553,3938.7,3937.5,2.6189717]
[1734305325989,0.7553,3938.7,3937.6,0.0793117]
[1734305326200,0.7553,3938.7,3937.5,2.53966]
[1734305326403,0.7553,3938.7,3937.6,2.61890404]
[1734305326603,0.7553,3938.7,3937.1,2.66765907]
[1734305326604,2.91657626,3938.4,3937.3,2.53978]
[1734305326802,2.91657626,3938.4,3937.4,0.07931569]
[1734305327003,2.91657626,3938.4,3937.1,2.5399]
[1734305327218,0.7553,3938.3,3937.2,0.07932072]
[1734305327513,0.7553,3938.3,3935.7,3.0]
[1734305327514,0.7553,3938.3,3937.3,0.07932072]
[1734305327721,0.7553,3937.6,3936.5,2.54031]
[1734305328028,0.7553,3937.6,3934.9,2.7144632]
[1734305328029,2.91657626,3937.0,3936.6,0.07933211]
[1734305328191,2.91657626,3937.0,3934.9,2.7144632]
[1734305328192,0.7553,3936.9,3936.0,2.54063]
[1734305328520,0.7553,3936.9,3936.2,2.5405]
[1734305328675,0.7553,3936.9,3935.7,2.54083]
[1734305328676,0.7553,3936.9,3936.3,2.61977196]
[1734305329030,0.7553,3936.9,3936.4,2.61971196]
[1734305329326,0.7553,3936.9,3936.5,0.07934196]
[1734305329475,0.8221,3936.5,3934.9,0.1731332]
[1734305329681,0.8221,3936.5,3935.0,0.0793465]
[1734305329882,0.8221,3936.5,3935.5,2.54094]
[1734305330147,0.8221,3936.5,3935.1,2.54123]
[1734305330292,0.8221,3936.5,3935.4,2.54099]
[1734305330618,0.8221,3936.5,3935.5,0.0793516]
[1734305330820,0.8221,3936.5,3935.6,0.0793516]
[1734305330983,0.8221,3936.5,3935.2,2.54113]
[1734305331183,0.8221,3936.5,3935.3,0.07935916]
[1734305331422,0.8221,3936.5,3935.4,2.62037916]
[1734305331605,0.8221,3936.5,3935.5,2.62030916]
[1734305331922,0.8221,3936.5,3934.9,0.1731332]
[1734305331923,0.8221,3936.5,3935.6,0.07935916]
[1734305332126,0.8221,3936.5,3936.1,2.54057]
[1734305332441,0.8221,3936.5,3936.2,0.0793484]
[1734305332586,0.8221,3936.5,3934.9,0.1731332]
[1734305332840,0.8221,3936.5,3935.8,2.54072]
[1734305333265,0.8221,3936.5,3935.9,0.07934832]
[1734305333578,0.8221,3936.5,3934.9,0.9444332]
[1734305333579,0.8221,3936.5,3936.3,2.5404]
[1734305333777,0.8221,3936.5,3936.4,0.07934832]
[1734305334078,2.91657626,3937.2,3936.4,0.07934832]
[1734305334079,0.8221,3937.1,3936.6,2.54023]
[1734305334282,0.8221,3937.1,3936.7,0.07934832]
[1734305334479,0.8221,3937.1,3936.8,0.07934832]
[1734305334782,0.8221,3937.1,3935.8,2.54076]
[1734305334783,0.8221,3937.1,3936.9,0.07934832]
[1734305334996,0.8221,3937.1,3937.0,0.07934832]
[1734305335481,0.8304,3937.7,3937.3,2.5398]
[1734305335789,0.8304,3937.7,3937.5,2.53964]
[1734305335975,0.8304,3937.7,3936.4,2.54033]
[1734305335976,0.8265,3938.3,3937.6,0.07934832]
[1734305336344,0.8265,3938.3,3937.7,0.07934832]
[1734305336568,2.91657626,3937.8,3937.0,2.53999]
[1734305336900,2.91657626,3937.8,3937.1,2.61923212]
[1734305337100,2.91657626,3937.8,3937.2,0.07932212]
[1734305337304,0.7697,3937.7,3937.3,0.07932212]
[1734305337605,0.7697,3937.7,3936.3,2.54044]
[1734305337606,2.91657626,3937.4,3936.3,2.54044]
[1734305337902,2.91657626,3937.4,3936.4,0.07933651]
[1734305338075,2.91657626,3937.4,3936.5,0.07933651]
[1734305338283,0.36862763,3937.4,3936.6,0.07933651]
[1734305338467,3.72107626,3936.7,3936.3,2.54042]
[1734305338659,3.72107626,3936.7,3936.4,0.0793379]
[1734305338962,3.72107626,3936.7,3936.3,2.54042]
[1734305338963,3.72107626,3936.7,3936.5,0.0793379]
[1734305339163,3.72107626,3936.7,3936.6,0.0793379]
[1734305339601,3.72107626,3936.7,3936.3,2.54042]
[1734305339915,3.72107626,3936.7,3936.4,0.07934014]
[1734305340061,3.72107626,3936.7,3936.5,0.07934014]
[1734305340373,0.8045,3936.7,3936.6,0.07934014]
[1734305341164,0.8045,3936.7,3934.5,0.02540503]
[1734305341165,3.72107626,3936.7,3936.2,0.07934014]
[1734305341368,3.72107626,3936.7,3936.3,0.07934014]
[1734305341704,3.0,3937.9,3935.0,0.7566]
[1734305341705,0.7784,3937.2,3936.5,2.54031]
[1734305341909,0.7784,3937.2,3936.6,0.07934014]
[1734305342063,0.7784,3937.2,3936.7,0.07934014]
[1734305342265,0.7784,3937.2,3936.8,0.07934014]
[1734305342472,0.7784,3937.2,3936.9,0.07934014]
[1734305342665,0.7784,3937.2,3937.1,2.53994]
[1734305342868,0.7784,3937.2,3937.1,0.07934014]
[1734305343466,3.0,3937.9,3937.8,2.53948]
[1734305343467,3.74397626,3937.9,3937.8,2.53948]
[1734305343668,3.74397626,3937.9,3937.8,0.02934014]
[1734305343934,3.74397626,3937.9,3936.2,2.54049]
[1734305344144,2.91657626,3937.0,3936.3,2.54044]
[1734305344442,2.91657626,3937.0,3935.6,0.7593]
[1734305344607,2.91657626,3937.0,3936.6,2.54025]
[1734305345842,2.91657626,3937.6,3937.2,2.53986]
[1734305346053,2.91657626,3937.6,3937.4,2.53969]
[1734305346339,0.8274,3937.9,3937.5,2.53965]
[1734305347167,0.8274,3937.9,3936.3,1.01793851]
[1734305347168,2.91657626,3937.6,3936.3,1.01793851]
[1734305347438,2.91657626,3937.6,3936.1,2.54057]
[1734305347803,2.91657626,3937.6,3935.6,4.82708777]
[1734305347804,0.7881,3936.9,3935.6,0.7593]
[1734305347964,3.0,3937.5,3935.6,0.7593]
[1734305347965,0.7881,3937.4,3935.7,1.04333918]
[1734305348165,0.7881,3937.4,3936.4,2.54038]
[1734305348308,3.553946,3939.0,3935.8,5.68186966]
[1734305348309,0.8061,3937.9,3935.9,1.04333897]
[1734305348509,0.8061,3937.9,3937.7,2.53953]
[1734305348756,0.8061,3937.9,3936.4,1.01793851]
[1734305348964,0.8061,3937.9,3936.5,0.84936051]
[1734305349162,0.8061,3937.9,3936.3,0.55]
[1734305349362,0.8061,3937.9,3936.3,3.69188584]
[1734305349519,0.8061,3937.9,3937.4,2.5397]
[1734305349724,0.8061,3937.9,3937.5,2.53967]
[1734305350365,1.015226,3939.0,3936.5,2.54031]
[1734305350366,0.7795,3938.5,3938.0,2.53932]
[1734305350571,1.04741809,3940.3,3936.4,0.2499]
[1734305350572,0.7795,3939.4,3939.1,2.53861]
[1734305350867,0.7795,3939.4,3937.7,2.53955]
[1734305350868,0.7795,3939.4,3939.2,2.53856]
[1734305351018,2.91657626,3940.1,3939.5,2.53835]
[1734305351019,0.7795,3940.0,3939.5,2.53835]
[1734305351529,0.7795,3940.0,3939.8,2.53818]
[1734305353485,0.7795,3940.0,3939.0,3.2919]
[1734305353630,0.7795,3940.0,3939.3,2.53849]
[1734305353631,3.7795,3940.0,3939.3,2.53849]
[1734305354143,3.7795,3940.0,3938.5,0.7532]
[1734305354345,3.7795,3940.0,3939.7,2.53826]
[1734305354959,3.7795,3940.0,3939.4,2.53842]
[1734305355190,3.7795,3940.0,3939.4,2.5384]
[1734305355363,3.7795,3940.0,3938.9,2.53876]
[1734305355675,3.7795,3940.0,3939.5,2.53837]
[1734305356149,3.7795,3940.0,3938.9,2.53876]
[1734305356346,3.7795,3940.0,3938.6,2.53897]
[1734305356347,2.91657626,3939.5,3939.0,0.07927892]
[1734305356573,0.792,3939.3,3938.3,2.53914]
[1734305356861,0.792,3939.3,3937.6,2.5396]
[1734305357066,0.792,3939.3,3939.1,2.53863]
[1734305357231,0.7892,3939.7,3938.6,2.53896]
[1734305357430,0.7892,3939.7,3939.5,2.53833]
[1734305357989,0.7892,3939.7,3939.4,2.53845]
[1734305358475,0.7892,3939.7,3938.5,0.757]
[1734305358476,3.70577626,3940.1,3939.5,2.53838]
[1734305358675,3.70577626,3940.1,3939.1,0.02538461]
[1734305358878,3.0,3940.6,3939.9,2.5381]
[1734305359084,0.7892,3940.6,3940.2,2.53792]
[1734305359643,0.7892,3940.6,3939.1,2.53865]
[1734305359946,0.7892,3940.6,3940.0,2.53805]
[1734305360257,0.7892,3940.6,3940.0,2.53801]
[1734305360460,0.37057763,3940.5,3940.0,2.53801]
[1734305360655,0.37057763,3940.5,3939.6,2.53832]
[1734305360867,0.37057763,3940.5,3939.1,2.53863]
[1734305361089,0.37057763,3940.5,3939.0,2.53867]
[1734305361272,0.7852,3940.0,3939.1,2.53863]
[1734305361454,3.0,3939.4,3938.0,0.7819]
[1734305361802,3.0,3939.4,3938.1,0.07929382]
[1734305361803,0.7852,3939.3,3938.1,0.07929382]
[1734305362097,0.7852,3938.7,3937.6,2.5396]
[1734305362241,0.7852,3938.7,3937.3,0.7819]
[1734305362443,0.7852,3938.7,3937.7,2.53953]
[1734305362679,0.7852,3938.7,3937.3,0.7819]
[1734305363056,0.7852,3938.7,3937.4,0.02539478]
[1734305363420,2.91657626,3938.3,3936.6,0.7819]
[1734305363691,0.8118,3938.2,3936.6,0.7819]
[1734305363903,0.8118,3938.2,3937.4,2.53974]
[1734305364188,2.91657626,3937.6,3936.5,2.54026]
[1734305364390,2.91657626,3937.6,3935.9,0.7721]
[1734305364391,0.8118,3937.5,3936.0,2.6674152]
[1734305364601,0.8118,3937.5,3936.3,2.54044]
[1734305364746,0.8118,3937.5,3936.0,0.1267652]
[1734305364747,3.8118,3937.5,3936.0,0.1267652]
[1734305364953,3.8118,3937.5,3936.3,2.54039]
[1734305365388,2.91657626,3937.0,3935.9,2.54069]
[1734305365895,3.8118,3936.9,3935.0,3.31337]
[1734305366095,3.8118,3936.9,3935.1,2.62057591]
[1734305366261,3.8118,3936.9,3935.2,0.07934591]
[1734305366461,3.8118,3936.9,3935.3,0.07934591]
[1734305366687,3.8118,3936.9,3935.7,2.54082]
[1734305367005,3.8118,3936.9,3935.0,3.31336]
[1734305367150,3.8118,3936.9,3935.1,0.07934836]
[1734305367349,3.8118,3936.9,3935.8,2.54077]
[1734305367577,3.8118,3936.9,3935.8,2.54076]